[Event "Titled Tuesday Blitz December 06 Late 2022"]
[White "Saya, Ethan"]
[Black "Ankerst, Mihael"]
[WhiteFideId "26095181"]
[BlackFideId "14602369"]
[WhiteElo "2178"]
[BlackElo "2376"]
[Result "0-1"]
[Round "08"]
[TimeControl "180+1"]
[Date "2022.12.07"]
[WhiteClock "0:00:29"]
[BlackClock "0:00:23"]

1. e4 {[%clk 0:03:00]}  c5 {[%clk 0:02:51]} 2. Nc3 {[%clk 0:03:00]}  Nc6 {[%clk 0:02:51]} 3. Bb5 {[%clk 0:02:59]}  e6 {[%clk 0:02:51]} 4. Bxc6 {[%clk 0:02:58]}  bxc6 {[%clk 0:02:52]} 5. d3 {[%clk 0:02:59]}  d5 {[%clk 0:02:52]} 6. f4 {[%clk 0:02:59]}  Nf6 {[%clk 0:02:52]} 7. Nf3 {[%clk 0:02:59]}  Be7 {[%clk 0:02:53]} 8. O-O {[%clk 0:02:58]}  O-O {[%clk 0:02:53]} 9. Qe1 {[%clk 0:02:58]}  Qc7 {[%clk 0:02:52]} 10. e5 {[%clk 0:02:57]}  Nd7 {[%clk 0:02:52]} 11. Qg3 {[%clk 0:02:57]}  Rd8 {[%clk 0:02:50]} 12. f5 {[%clk 0:02:56]}  exf5 {[%clk 0:02:50]} 13. Bh6 {[%clk 0:02:54]}  Bf8 {[%clk 0:02:47]} 14. Nh4 {[%clk 0:02:45]}  Qxe5 {[%clk 0:02:45]} 15. Bf4 {[%clk 0:02:40]}  Qd4+ {[%clk 0:02:42]} 16. Be3 {[%clk 0:02:39]}  Qg4 {[%clk 0:02:41]} 17. Bg5 {[%clk 0:02:24]}  Qxg3 {[%clk 0:02:31]} 18. hxg3 {[%clk 0:02:25]}  f6 {[%clk 0:02:30]} 19. Bd2 {[%clk 0:02:21]}  g6 {[%clk 0:02:28]} 20. g4 {[%clk 0:02:21]}  fxg4 {[%clk 0:02:25]} 21. Rae1 {[%clk 0:02:12]}  Kf7 {[%clk 0:02:12]} 22. Na4 {[%clk 0:02:04]}  Nb6 {[%clk 0:01:47]} 23. Ba5 {[%clk 0:01:43]}  Rb8 {[%clk 0:01:45]} 24. Nxb6 {[%clk 0:01:43]}  axb6 {[%clk 0:01:45]} 25. Bc3 {[%clk 0:01:44]}  d4 {[%clk 0:01:41]} 26. Bd2 {[%clk 0:01:43]}  Rd5 {[%clk 0:01:31]} 27. g3 {[%clk 0:01:41]}  Bd6 {[%clk 0:01:30]} 28. Kf2 {[%clk 0:01:34]}  Be6 {[%clk 0:01:18]} 29. Ng2 {[%clk 0:01:26]}  Re5 {[%clk 0:01:17]} 30. Bf4 {[%clk 0:01:25]}  Rxe1 {[%clk 0:01:14]} 31. Rxe1 {[%clk 0:01:26]}  Rd8 {[%clk 0:01:13]} 32. Bxd6 {[%clk 0:01:24]}  Rxd6 {[%clk 0:01:13]} 33. Nf4 {[%clk 0:01:24]}  b5 {[%clk 0:01:09]} 34. a4 {[%clk 0:01:21]}  bxa4 {[%clk 0:01:04]} 35. Nxe6 {[%clk 0:01:22]}  Rxe6 {[%clk 0:01:02]} 36. Ra1 {[%clk 0:01:23]}  Ke7 {[%clk 0:00:55]} 37. Rxa4 {[%clk 0:01:22]}  Kd6 {[%clk 0:00:55]} 38. Ra7 {[%clk 0:01:22]}  h5 {[%clk 0:00:45]} 39. Rg7 {[%clk 0:01:20]}  f5 {[%clk 0:00:39]} 40. Rg8 {[%clk 0:00:39]}  Ke5 {[%clk 0:00:38]} 41. Ra8 {[%clk 0:00:33]}  f4 {[%clk 0:00:37]} 42. gxf4+ {[%clk 0:00:31]}  Kxf4 {[%clk 0:00:37]} 43. Ra5 {[%clk 0:00:31]}  g3+ {[%clk 0:00:37]} 44. Kf1 {[%clk 0:00:32]}  h4 {[%clk 0:00:33]} 45. Rxc5 {[%clk 0:00:31]}  h3 {[%clk 0:00:32]} 46. Rc4 {[%clk 0:00:28]}  Kf3 {[%clk 0:00:23]} 47. Rxd4 {[%clk 0:00:28]}  g2+ {[%clk 0:00:24]} 48. Kg1 {[%clk 0:00:28]}  Re1+ {[%clk 0:00:24]} 49. Kh2 {[%clk 0:00:29]}  Rh1# {[%clk 0:00:23]} 0-1


[Site "https://www.chess.com"]

[Event "Titled Tuesday Blitz December 06 Late 2022"]
[White "Seletsky, Grigory"]
[Black "Stanisz, Patryk"]
[WhiteFideId "14112191"]
[BlackFideId "1123106"]
[WhiteElo "2492"]
[BlackElo "2069"]
[Result "1-0"]
[Round "08"]
[TimeControl "180+1"]
[Date "2022.12.07"]
[WhiteClock "0:00:37"]
[BlackClock "0:00:02"]

1. e4 {[%clk 0:03:00]}  c5 {[%clk 0:02:59]} 2. Nc3 {[%clk 0:02:59]}  Nc6 {[%clk 0:02:59]} 3. d3 {[%clk 0:02:59]}  g6 {[%clk 0:02:58]} 4. Be3 {[%clk 0:02:59]}  d6 {[%clk 0:02:58]} 5. d4 {[%clk 0:03:00]}  cxd4 {[%clk 0:02:51]} 6. Bxd4 {[%clk 0:03:01]}  Nf6 {[%clk 0:01:58]} 7. Bxf6 {[%clk 0:02:59]}  exf6 {[%clk 0:01:58]} 8. Bd3 {[%clk 0:02:59]}  Bg7 {[%clk 0:01:59]} 9. Nge2 {[%clk 0:02:58]}  O-O {[%clk 0:01:59]} 10. O-O {[%clk 0:02:58]}  Ne5 {[%clk 0:01:59]} 11. Kh1 {[%clk 0:02:44]}  f5 {[%clk 0:01:55]} 12. exf5 {[%clk 0:02:37]}  Nxd3 {[%clk 0:01:55]} 13. Qxd3 {[%clk 0:02:26]}  Bxf5 {[%clk 0:01:55]} 14. Qd2 {[%clk 0:02:26]}  Qb6 {[%clk 0:01:51]} 15. Rab1 {[%clk 0:02:24]}  Rfe8 {[%clk 0:01:48]} 16. Ng3 {[%clk 0:02:12]}  Be6 {[%clk 0:01:37]} 17. f4 {[%clk 0:01:53]}  Bc4 {[%clk 0:01:26]} 18. Rfd1 {[%clk 0:01:42]}  Rad8 {[%clk 0:01:23]} 19. b3 {[%clk 0:01:39]}  Be6 {[%clk 0:01:01]} 20. Nd5 {[%clk 0:01:39]}  Bxd5 {[%clk 0:00:41]} 21. Qxd5 {[%clk 0:01:38]}  Qf2 {[%clk 0:00:30]} 22. Qd2 {[%clk 0:01:27]}  Qxd2 {[%clk 0:00:15]} 23. Rxd2 {[%clk 0:01:27]}  d5 {[%clk 0:00:14]} 24. Kg1 {[%clk 0:01:13]}  Bc3 {[%clk 0:00:11]} 25. Re2 {[%clk 0:01:11]}  Bd4+ {[%clk 0:00:06]} 26. Kf1 {[%clk 0:01:10]}  f5 {[%clk 0:00:06]} 27. Rxe8+ {[%clk 0:00:53]}  Rxe8 {[%clk 0:00:07]} 28. Rd1 {[%clk 0:00:50]}  Be3 {[%clk 0:00:07]} 29. Rxd5 {[%clk 0:00:49]}  Bxf4 {[%clk 0:00:07]} 30. Rd7 {[%clk 0:00:44]}  Bxg3 {[%clk 0:00:04]} 31. hxg3 {[%clk 0:00:42]}  Rc8 {[%clk 0:00:02]} 32. c4 {[%clk 0:00:40]}  Rb8 {[%clk 0:00:02]} 33. c5 {[%clk 0:00:37]}  a6 {[%clk 0:00:02]} 34. b4 {[%clk 0:00:37]} 1-0


[Site "https://www.chess.com"]

[Event "Titled Tuesday Blitz December 06 Late 2022"]
[White "Tanenbaum, Zachary"]
[Black "Sargsyan, Anna M."]
[WhiteFideId "2060850"]
[BlackFideId "13308130"]
[WhiteElo "2175"]
[BlackElo "2284"]
[Result "1-0"]
[Round "08"]
[TimeControl "180+1"]
[Date "2022.12.06"]
[WhiteClock "0:00:13"]
[BlackClock "0:00:10"]

1. e4 {[%clk 0:03:00]}  e5 {[%clk 0:02:54]} 2. Nf3 {[%clk 0:03:00]}  Nc6 {[%clk 0:02:54]} 3. Bc4 {[%clk 0:03:01]}  Bc5 {[%clk 0:02:53]} 4. c3 {[%clk 0:03:01]}  Nf6 {[%clk 0:02:53]} 5. d4 {[%clk 0:02:58]}  exd4 {[%clk 0:02:54]} 6. b4 {[%clk 0:02:58]}  Be7 {[%clk 0:02:38]} 7. b5 {[%clk 0:02:52]}  Na5 {[%clk 0:02:37]} 8. Bd3 {[%clk 0:02:51]}  d5 {[%clk 0:02:30]} 9. e5 {[%clk 0:02:50]}  Ne4 {[%clk 0:02:30]} 10. cxd4 {[%clk 0:02:49]}  O-O {[%clk 0:02:27]} 11. O-O {[%clk 0:02:47]}  c5 {[%clk 0:02:27]} 12. Nbd2 {[%clk 0:02:30]}  f5 {[%clk 0:02:21]} 13. exf6 {[%clk 0:02:16]}  Nxf6 {[%clk 0:02:08]} 14. dxc5 {[%clk 0:02:15]}  Bxc5 {[%clk 0:02:07]} 15. Bb2 {[%clk 0:02:14]}  b6 {[%clk 0:01:49]} 16. Ne5 {[%clk 0:01:49]}  Bb7 {[%clk 0:01:03]} 17. Ndf3 {[%clk 0:01:46]}  Ne4 {[%clk 0:00:55]} 18. Rc1 {[%clk 0:01:30]}  h6 {[%clk 0:00:48]} 19. Qe2 {[%clk 0:01:01]}  Qe8 {[%clk 0:00:35]} 20. Ba1 {[%clk 0:00:51]}  Qh5 {[%clk 0:00:16]} 21. Qb2 {[%clk 0:00:50]}  Nf6 {[%clk 0:00:16]} 22. Nd7 {[%clk 0:00:47]}  Rf7 {[%clk 0:00:14]} 23. Nxc5 {[%clk 0:00:47]}  bxc5 {[%clk 0:00:14]} 24. Rxc5 {[%clk 0:00:47]}  Re8 {[%clk 0:00:09]} 25. Qc3 {[%clk 0:00:43]}  d4 {[%clk 0:00:04]} 26. Qxd4 {[%clk 0:00:17]}  Qg4 {[%clk 0:00:03]} 27. Qxg4 {[%clk 0:00:16]}  Nxg4 {[%clk 0:00:04]} 28. Bc3 {[%clk 0:00:14]}  Bxf3 {[%clk 0:00:04]} 29. gxf3 {[%clk 0:00:09]}  Nb7 {[%clk 0:00:04]} 30. Rf5 {[%clk 0:00:06]}  Rxf5 {[%clk 0:00:02]} 31. Bxf5 {[%clk 0:00:06]}  Ne5 {[%clk 0:00:03]} 32. Kg2 {[%clk 0:00:06]}  Nd6 {[%clk 0:00:03]} 33. Be4 {[%clk 0:00:05]}  Nxb5 {[%clk 0:00:03]} 34. Bb4 {[%clk 0:00:04]}  g5 {[%clk 0:00:02]} 35. Re1 {[%clk 0:00:04]}  Nf7 {[%clk 0:00:01]} 36. a4 {[%clk 0:00:03]}  Nd4 {[%clk 0:00:01]} 37. Bh7+ {[%clk 0:00:04]}  Kg7 {[%clk 0:00:01]} 38. Rxe8 {[%clk 0:00:05]}  Kxh7 {[%clk 0:00:02]} 39. Re7 {[%clk 0:00:05]}  Kg6 {[%clk 0:00:02]} 40. Rxa7 {[%clk 0:00:05]}  Nc6 {[%clk 0:00:02]} 41. Ra6 {[%clk 0:00:05]}  Ne5 {[%clk 0:00:03]} 42. Bc3 {[%clk 0:00:06]}  Kf5 {[%clk 0:00:03]} 43. Bxe5 {[%clk 0:00:06]}  Nxe5 {[%clk 0:00:04]} 44. Rxh6 {[%clk 0:00:06]}  Nc4 {[%clk 0:00:03]} 45. Rc6 {[%clk 0:00:06]}  Ne5 {[%clk 0:00:02]} 46. Rc5 {[%clk 0:00:06]}  g4 {[%clk 0:00:03]} 47. Rxe5+ {[%clk 0:00:07]}  Kxe5 {[%clk 0:00:03]} 48. fxg4 {[%clk 0:00:07]}  Kf4 {[%clk 0:00:04]} 49. a5 {[%clk 0:00:07]}  Kxg4 {[%clk 0:00:05]} 50. a6 {[%clk 0:00:08]}  Kf4 {[%clk 0:00:05]} 51. a7 {[%clk 0:00:08]}  Ke4 {[%clk 0:00:06]} 52. a8=Q+ {[%clk 0:00:09]}  Kd3 {[%clk 0:00:07]} 53. Qf3+ {[%clk 0:00:10]}  Kd2 {[%clk 0:00:07]} 54. h4 {[%clk 0:00:10]}  Ke1 {[%clk 0:00:08]} 55. h5 {[%clk 0:00:11]}  Kd2 {[%clk 0:00:08]} 56. h6 {[%clk 0:00:12]}  Ke1 {[%clk 0:00:09]} 57. h7 {[%clk 0:00:13]}  Kd2 {[%clk 0:00:09]} 58. h8=Q {[%clk 0:00:14]}  Ke1 {[%clk 0:00:10]} 59. Qhc3# {[%clk 0:00:13]} 1-0


[Site "https://www.chess.com"]

[Event "Titled Tuesday Blitz December 06 Late 2022"]
[White "Vlassov, Nikolai"]
[Black "Ferriz Barrios, Andres"]
[WhiteFideId "4103360"]
[BlackFideId "5104467"]
[WhiteElo "2324"]
[BlackElo "2261"]
[Result "1-0"]
[Round "08"]
[TimeControl "180+1"]
[Date "2022.12.07"]
[WhiteClock "0:00:12"]
[BlackClock "0:01:09"]

1. e4 {[%clk 0:03:00]}  e6 {[%clk 0:02:54]} 2. c4 {[%clk 0:02:57]}  d5 {[%clk 0:02:55]} 3. cxd5 {[%clk 0:02:57]}  exd5 {[%clk 0:02:54]} 4. Qb3 {[%clk 0:02:57]}  Nf6 {[%clk 0:02:51]} 5. e5 {[%clk 0:02:57]}  Ne4 {[%clk 0:02:50]} 6. d4 {[%clk 0:02:57]}  c5 {[%clk 0:02:47]} 7. Bb5+ {[%clk 0:02:57]}  Bd7 {[%clk 0:02:47]} 8. Ne2 {[%clk 0:02:57]}  Qa5+ {[%clk 0:02:43]} 9. Nbc3 {[%clk 0:02:53]}  cxd4 {[%clk 0:02:41]} 10. Nxd4 {[%clk 0:02:46]}  Bb4 {[%clk 0:02:38]} 11. O-O {[%clk 0:02:41]}  Bxc3 {[%clk 0:02:34]} 12. bxc3 {[%clk 0:02:37]}  Nxc3 {[%clk 0:02:35]} 13. Bxd7+ {[%clk 0:02:15]}  Nxd7 {[%clk 0:02:34]} 14. Ba3 {[%clk 0:02:04]}  Ne4 {[%clk 0:02:26]} 15. Rfc1 {[%clk 0:01:47]}  Qb6 {[%clk 0:02:22]} 16. Qxd5 {[%clk 0:01:42]}  Ng5 {[%clk 0:02:08]} 17. Rab1 {[%clk 0:01:38]}  Qg6 {[%clk 0:02:02]} 18. Rxb7 {[%clk 0:01:18]}  Nh3+ {[%clk 0:02:01]} 19. Kf1 {[%clk 0:01:19]}  Qd3+ {[%clk 0:02:01]} 20. Ke1 {[%clk 0:01:16]}  Rd8 {[%clk 0:01:54]} 21. Rb3 {[%clk 0:01:01]}  Qg6 {[%clk 0:01:46]} 22. Rxh3 {[%clk 0:00:57]}  Nb6 {[%clk 0:01:39]} 23. Qc6+ {[%clk 0:00:50]}  Qxc6 {[%clk 0:01:39]} 24. Nxc6 {[%clk 0:00:50]}  Rd5 {[%clk 0:01:37]} 25. Rd1 {[%clk 0:00:43]}  Rxd1+ {[%clk 0:01:33]} 26. Kxd1 {[%clk 0:00:43]}  Kd7 {[%clk 0:01:34]} 27. Nxa7 {[%clk 0:00:40]}  Ra8 {[%clk 0:01:31]} 28. Rd3+ {[%clk 0:00:40]}  Kc7 {[%clk 0:01:27]} 29. Nb5+ {[%clk 0:00:38]}  Kc6 {[%clk 0:01:27]} 30. Nd4+ {[%clk 0:00:38]}  Kd5 {[%clk 0:01:26]} 31. f4 {[%clk 0:00:33]}  Nc4 {[%clk 0:01:25]} 32. Nc2+ {[%clk 0:00:25]}  Kc6 {[%clk 0:01:21]} 33. Rc3 {[%clk 0:00:22]}  Kd5 {[%clk 0:01:21]} 34. Ne3+ {[%clk 0:00:19]}  Nxe3+ {[%clk 0:01:22]} 35. Rxe3 {[%clk 0:00:19]}  Kd4 {[%clk 0:01:22]} 36. Ke2 {[%clk 0:00:19]}  Ra4 {[%clk 0:01:21]} 37. Bb2+ {[%clk 0:00:19]}  Kd5 {[%clk 0:01:20]} 38. a3 {[%clk 0:00:19]}  Ke6 {[%clk 0:01:20]} 39. Kf3 {[%clk 0:00:19]}  g5 {[%clk 0:01:19]} 40. g3 {[%clk 0:00:19]}  h5 {[%clk 0:01:18]} 41. Rb3 {[%clk 0:00:17]}  g4+ {[%clk 0:01:18]} 42. Ke3 {[%clk 0:00:17]}  Rc4 {[%clk 0:01:19]} 43. Rb6+ {[%clk 0:00:16]}  Ke7 {[%clk 0:01:19]} 44. Bd4 {[%clk 0:00:14]}  Rc2 {[%clk 0:01:19]} 45. f5 {[%clk 0:00:14]}  Rxh2 {[%clk 0:01:17]} 46. f6+ {[%clk 0:00:15]}  Kd7 {[%clk 0:01:17]} 47. e6+ {[%clk 0:00:15]}  fxe6 {[%clk 0:01:17]} 48. f7 {[%clk 0:00:15]}  Ke7 {[%clk 0:01:11]} 49. Rb7+ {[%clk 0:00:15]}  Kd6 {[%clk 0:01:09]} 50. f8=Q+ {[%clk 0:00:14]}  Kd5 {[%clk 0:01:09]} 51. Qc5# {[%clk 0:00:12]} 1-0


[Site "https://www.chess.com"]

[Event "Titled Tuesday Blitz December 06 Late 2022"]
[White "Xiong, Jeffery"]
[Black "Kamsky, Gata"]
[WhiteFideId "2047640"]
[BlackFideId "2000024"]
[WhiteElo "2726"]
[BlackElo "2666"]
[Result "1-0"]
[Round "08"]
[TimeControl "180+1"]
[Date "2022.12.06"]
[WhiteClock "0:00:18"]
[BlackClock "0:00:01"]

1. Nf3 {[%clk 0:02:57]}  Nf6 {[%clk 0:02:59]} 2. d4 {[%clk 0:02:55]}  d5 {[%clk 0:02:53]} 3. c4 {[%clk 0:02:52]}  c6 {[%clk 0:02:52]} 4. Nc3 {[%clk 0:02:42]}  e6 {[%clk 0:02:37]} 5. e3 {[%clk 0:02:41]}  Nbd7 {[%clk 0:02:34]} 6. Qc2 {[%clk 0:02:41]}  Bd6 {[%clk 0:02:32]} 7. Be2 {[%clk 0:02:40]}  O-O {[%clk 0:02:31]} 8. b3 {[%clk 0:02:26]}  b6 {[%clk 0:02:30]} 9. Bb2 {[%clk 0:02:27]}  Bb7 {[%clk 0:02:30]} 10. O-O {[%clk 0:02:27]}  Qe7 {[%clk 0:02:25]} 11. Rad1 {[%clk 0:02:27]}  Rac8 {[%clk 0:02:19]} 12. Rfe1 {[%clk 0:02:26]}  c5 {[%clk 0:02:18]} 13. cxd5 {[%clk 0:02:22]}  Nxd5 {[%clk 0:02:12]} 14. Nxd5 {[%clk 0:02:11]}  Bxd5 {[%clk 0:02:12]} 15. e4 {[%clk 0:02:02]}  cxd4 {[%clk 0:02:08]} 16. Qd3 {[%clk 0:01:34]}  e5 {[%clk 0:00:58]} 17. exd5 {[%clk 0:01:33]}  e4 {[%clk 0:00:56]} 18. Qxd4 {[%clk 0:01:28]}  f5 {[%clk 0:00:57]} 19. Bb5 {[%clk 0:01:17]}  Rc2 {[%clk 0:00:47]} 20. Bxd7 {[%clk 0:00:47]}  Qxd7 {[%clk 0:00:46]} 21. Ne5 {[%clk 0:00:48]}  Qc7 {[%clk 0:00:43]} 22. Rc1 {[%clk 0:00:42]}  Rc5 {[%clk 0:00:12]} 23. h3 {[%clk 0:00:21]}  Qe7 {[%clk 0:00:05]} 24. Nc6 {[%clk 0:00:18]}  Qg5 {[%clk 0:00:05]} 25. Rxc5 {[%clk 0:00:18]}  Bxc5 {[%clk 0:00:02]} 26. Qe5 {[%clk 0:00:18]}  a5 {[%clk 0:00:01]} 27. d6 {[%clk 0:00:18]} 1-0


[Site "https://www.chess.com"]

[Event "Titled Tuesday Blitz December 06 Late 2022"]
[White "Xu, Grant"]
[Black "Yoo, Christopher Woojin"]
[WhiteFideId "2052318"]
[BlackFideId "30909694"]
[WhiteElo "2186"]
[BlackElo "2463"]
[Result "1-0"]
[Round "08"]
[TimeControl "180+1"]
[Date "2022.12.06"]
[WhiteClock "0:00:15"]
[BlackClock "0:00:03"]

1. e4 {[%clk 0:03:00]}  Nf6 {[%clk 0:02:58]} 2. e5 {[%clk 0:03:00]}  Nd5 {[%clk 0:02:58]} 3. d4 {[%clk 0:03:00]}  d6 {[%clk 0:02:59]} 4. Bc4 {[%clk 0:03:01]}  Nb6 {[%clk 0:02:58]} 5. Bb3 {[%clk 0:03:02]}  dxe5 {[%clk 0:02:51]} 6. Qh5 {[%clk 0:03:02]}  e6 {[%clk 0:02:21]} 7. dxe5 {[%clk 0:03:02]}  Qd4 {[%clk 0:02:00]} 8. Nc3 {[%clk 0:02:55]}  Bb4 {[%clk 0:01:56]} 9. Ne2 {[%clk 0:02:51]}  Qe4 {[%clk 0:01:48]} 10. f3 {[%clk 0:02:41]}  Qg6 {[%clk 0:01:46]} 11. Qxg6 {[%clk 0:02:40]}  hxg6 {[%clk 0:01:46]} 12. a3 {[%clk 0:02:38]}  Be7 {[%clk 0:01:45]} 13. Be3 {[%clk 0:02:37]}  Na6 {[%clk 0:01:45]} 14. O-O-O {[%clk 0:02:35]}  Bd7 {[%clk 0:01:45]} 15. Ne4 {[%clk 0:02:31]}  O-O-O {[%clk 0:01:43]} 16. Rd2 {[%clk 0:02:23]}  Bc6 {[%clk 0:01:40]} 17. Ng5 {[%clk 0:02:23]}  Rxd2 {[%clk 0:01:37]} 18. Kxd2 {[%clk 0:02:23]}  Bxg5 {[%clk 0:01:37]} 19. Bxg5 {[%clk 0:02:22]}  Nc5 {[%clk 0:01:38]} 20. Nd4 {[%clk 0:02:19]}  Nxb3+ {[%clk 0:01:22]} 21. Nxb3 {[%clk 0:02:19]}  Nc4+ {[%clk 0:01:21]} 22. Kc3 {[%clk 0:02:17]}  Nxe5 {[%clk 0:01:20]} 23. Re1 {[%clk 0:02:09]}  Nd7 {[%clk 0:01:11]} 24. h3 {[%clk 0:02:10]}  e5 {[%clk 0:01:10]} 25. Be3 {[%clk 0:01:58]}  f6 {[%clk 0:01:04]} 26. Bf2 {[%clk 0:01:49]}  g5 {[%clk 0:00:58]} 27. Kd2 {[%clk 0:01:37]}  Bd5 {[%clk 0:00:55]} 28. Nc5 {[%clk 0:01:32]}  Nf8 {[%clk 0:00:52]} 29. b3 {[%clk 0:01:31]}  b6 {[%clk 0:00:52]} 30. Nd3 {[%clk 0:01:24]}  Ng6 {[%clk 0:00:50]} 31. c4 {[%clk 0:01:24]}  Bb7 {[%clk 0:00:50]} 32. Kc3 {[%clk 0:01:20]}  Rd8 {[%clk 0:00:46]} 33. Bg3 {[%clk 0:01:13]}  Bc6 {[%clk 0:00:43]} 34. Nb4 {[%clk 0:01:10]}  Kb7 {[%clk 0:00:42]} 35. Nc2 {[%clk 0:01:08]}  Bd7 {[%clk 0:00:38]} 36. Rd1 {[%clk 0:01:07]}  Bc8 {[%clk 0:00:37]} 37. Rxd8 {[%clk 0:01:06]}  Ne7 {[%clk 0:00:34]} 38. Rf8 {[%clk 0:01:01]}  Nf5 {[%clk 0:00:34]} 39. Bf2 {[%clk 0:01:01]}  Be6 {[%clk 0:00:27]} 40. g4 {[%clk 0:01:00]}  Nd6 {[%clk 0:00:26]} 41. Ne3 {[%clk 0:00:58]}  a5 {[%clk 0:00:26]} 42. Nd5 {[%clk 0:00:57]}  a4 {[%clk 0:00:26]} 43. bxa4 {[%clk 0:00:56]}  Kc6 {[%clk 0:00:25]} 44. Ne7+ {[%clk 0:00:46]}  Kd7 {[%clk 0:00:25]} 45. Nf5 {[%clk 0:00:45]}  Nxc4 {[%clk 0:00:25]} 46. Nxg7 {[%clk 0:00:44]}  Bd5 {[%clk 0:00:25]} 47. Rxf6 {[%clk 0:00:41]}  Nxa3 {[%clk 0:00:26]} 48. Rf5 {[%clk 0:00:37]}  Nb1+ {[%clk 0:00:26]} 49. Kd3 {[%clk 0:00:34]}  c5 {[%clk 0:00:24]} 50. Rxe5 {[%clk 0:00:34]}  Bxf3 {[%clk 0:00:23]} 51. Rxg5 {[%clk 0:00:32]}  Na3 {[%clk 0:00:20]} 52. h4 {[%clk 0:00:28]}  Bd1 {[%clk 0:00:16]} 53. a5 {[%clk 0:00:27]}  bxa5 {[%clk 0:00:14]} 54. Rxc5 {[%clk 0:00:27]}  a4 {[%clk 0:00:15]} 55. Kc3 {[%clk 0:00:25]}  Bb3 {[%clk 0:00:06]} 56. Kb2 {[%clk 0:00:22]}  Nc4+ {[%clk 0:00:06]} 57. Rxc4 {[%clk 0:00:22]}  Bxc4 {[%clk 0:00:06]} 58. Kc3 {[%clk 0:00:21]}  Be2 {[%clk 0:00:06]} 59. g5 {[%clk 0:00:20]}  Ke7 {[%clk 0:00:06]} 60. Kd4 {[%clk 0:00:20]}  a3 {[%clk 0:00:05]} 61. Ke5 {[%clk 0:00:20]}  a2 {[%clk 0:00:04]} 62. Bd4 {[%clk 0:00:21]}  Kf7 {[%clk 0:00:04]} 63. Kf4 {[%clk 0:00:17]}  Kg6 {[%clk 0:00:03]} 64. Nf5 {[%clk 0:00:16]}  Bd1 {[%clk 0:00:03]} 65. Ba1 {[%clk 0:00:16]}  Be2 {[%clk 0:00:03]} 66. Ng3 {[%clk 0:00:16]}  Bd1 {[%clk 0:00:03]} 67. h5+ {[%clk 0:00:15]}  Kh7 {[%clk 0:00:02]} 68. Kf5 {[%clk 0:00:15]}  Bc2+ {[%clk 0:00:03]} 69. Kf6 {[%clk 0:00:15]}  Kg8 {[%clk 0:00:03]} 70. g6 {[%clk 0:00:15]} 1-0


[Site "https://www.chess.com"]

[Event "Titled Tuesday Blitz December 06 Late 2022"]
[White "Yuan, Qingyu"]
[Black "Goncalves, Davi Sulzbacher"]
[WhiteFideId "8609772"]
[BlackFideId "2154510"]
[WhiteElo "2709"]
[BlackElo "2514"]
[Result "1-0"]
[Round "08"]
[TimeControl "180+1"]
[Date "2022.12.07"]
[WhiteClock "0:00:11"]
[BlackClock "0:00:03"]

1. e4 {[%clk 0:03:00]}  c5 {[%clk 0:02:56]} 2. Nf3 {[%clk 0:03:01]}  d6 {[%clk 0:02:54]} 3. d4 {[%clk 0:03:01]}  cxd4 {[%clk 0:02:55]} 4. Nxd4 {[%clk 0:03:02]}  Nf6 {[%clk 0:02:55]} 5. Nc3 {[%clk 0:03:03]}  a6 {[%clk 0:02:55]} 6. Rg1 {[%clk 0:03:03]}  b5 {[%clk 0:02:53]} 7. a4 {[%clk 0:03:03]}  b4 {[%clk 0:02:52]} 8. Nd5 {[%clk 0:03:03]}  Bb7 {[%clk 0:02:49]} 9. Nxf6+ {[%clk 0:02:50]}  gxf6 {[%clk 0:02:48]} 10. Bd3 {[%clk 0:02:36]}  Nd7 {[%clk 0:02:42]} 11. Qe2 {[%clk 0:02:22]}  e6 {[%clk 0:02:23]} 12. Nb3 {[%clk 0:02:16]}  Be7 {[%clk 0:02:03]} 13. Be3 {[%clk 0:02:11]}  Qc7 {[%clk 0:02:00]} 14. g4 {[%clk 0:02:02]}  Ne5 {[%clk 0:01:41]} 15. f4 {[%clk 0:02:02]}  Nxd3+ {[%clk 0:01:41]} 16. cxd3 {[%clk 0:02:02]}  Rc8 {[%clk 0:01:38]} 17. Rc1 {[%clk 0:01:55]}  Qd7 {[%clk 0:01:38]} 18. Rxc8+ {[%clk 0:01:44]}  Qxc8 {[%clk 0:01:36]} 19. Kf2 {[%clk 0:01:35]}  h5 {[%clk 0:01:23]} 20. gxh5 {[%clk 0:01:19]}  f5 {[%clk 0:01:17]} 21. Bd4 {[%clk 0:01:19]}  e5 {[%clk 0:01:12]} 22. fxe5 {[%clk 0:01:17]}  Bh4+ {[%clk 0:01:09]} 23. Ke3 {[%clk 0:01:18]}  fxe4 {[%clk 0:01:00]} 24. exd6 {[%clk 0:01:04]}  Qh3+ {[%clk 0:00:54]} 25. Kd2 {[%clk 0:01:02]}  Rxh5 {[%clk 0:00:52]} 26. Rg8+ {[%clk 0:00:51]}  Kd7 {[%clk 0:00:51]} 27. Nc5+ {[%clk 0:00:48]}  Rxc5 {[%clk 0:00:47]} 28. Bxc5 {[%clk 0:00:48]}  Qf5 {[%clk 0:00:15]} 29. Qg4 {[%clk 0:00:44]}  Qxg4 {[%clk 0:00:10]} 30. Rxg4 {[%clk 0:00:44]}  Bf6 {[%clk 0:00:10]} 31. Bxb4 {[%clk 0:00:40]}  exd3 {[%clk 0:00:09]} 32. Kxd3 {[%clk 0:00:29]}  Bxb2 {[%clk 0:00:08]} 33. h4 {[%clk 0:00:29]}  f5 {[%clk 0:00:07]} 34. Rg5 {[%clk 0:00:23]}  a5 {[%clk 0:00:05]} 35. Bc3 {[%clk 0:00:18]}  Be4+ {[%clk 0:00:05]} 36. Kc4 {[%clk 0:00:18]}  Bc1 {[%clk 0:00:04]} 37. Rg6 {[%clk 0:00:15]}  Bf4 {[%clk 0:00:03]} 38. h5 {[%clk 0:00:12]}  Bxd6 {[%clk 0:00:03]} 39. h6 {[%clk 0:00:13]}  f4 {[%clk 0:00:04]} 40. h7 {[%clk 0:00:10]}  Bxg6 {[%clk 0:00:04]} 41. h8=Q {[%clk 0:00:11]}  Bf7+ {[%clk 0:00:05]} 42. Kd3 {[%clk 0:00:11]}  Bd5 {[%clk 0:00:04]} 43. Qg7+ {[%clk 0:00:10]}  Kc6 {[%clk 0:00:04]} 44. Be5 {[%clk 0:00:11]}  Bc5 {[%clk 0:00:02]} 45. Qf6+ {[%clk 0:00:11]}  Kb7 {[%clk 0:00:03]} 46. Qxf4 {[%clk 0:00:11]}  Bc6 {[%clk 0:00:03]} 47. Qf7+ {[%clk 0:00:11]}  Kb6 {[%clk 0:00:03]} 48. Qc7+ {[%clk 0:00:11]} 1-0


[Site "https://www.chess.com"]